bitfinex/quotes_SOLUSD_20241010
["timestamp","ask_amount","ask_price","bid_price","bid_amount"]
[1728559758761,16.659,140.09,140.03,24.9938]
[1728559758762,7.1393,140.07,140.03,24.9938]
[1728559760050,7.14,140.06,140.03,17.8527]
[1728559760357,16.659,140.09,140.01,7.1418]
[1728559760358,7.1404,140.05,140.01,7.1418]
[1728559760567,7.1404,140.05,140.02,7.1417]
[1728559762473,16.659,140.09,140.02,7.1417]
[1728559762676,7.1399,140.06,140.02,7.1417]
[1728559768575,7.1403,140.05,140.02,7.1417]
[1728559773984,23.776884,140.08,140.02,7.1417]
[1728559774279,7.1396,140.07,140.04,7.1408]
[1728559774681,7.139,140.08,140.04,7.1408]
[1728559775177,7.1393,140.07,140.03,8.56923659]
[1728559775677,7.1393,140.07,140.03,7.1411]
[1728559775877,7.1393,140.07,140.03,8.5691148]
[1728559778082,22.9178,140.09,140.03,8.5691148]
[1728559778288,7.1398,140.06,140.03,7.1411]
[1728559778477,23.776884,140.08,140.02,26.4243173]
[1728559778863,7.1401,140.06,140.02,26.4243173]
[1728559779076,7.1403,140.05,140.02,24.9963]
[1728559780509,23.776884,140.08,140.02,24.9963]
[1728559780689,7.14,140.06,140.02,24.9963]
[1728559782270,7.14,140.06,140.03,1.42808]
[1728559782684,7.14,140.06,140.03,7.1411]
[1728559782874,7.14,140.06,140.02,17.8545]
[1728559783386,7.14,140.06,140.02,24.9961]
[1728559784591,7.1394,140.07,140.03,7.141]
[1728559784795,7.1398,140.06,140.03,8.56900288]
[1728559784989,7.1398,140.06,140.02,24.9961]
[1728559787786,7.1403,140.05,140.02,17.8545]
[1728559790598,7.1418,140.02,139.99,17.8574]
[1728559790776,7.1418,140.02,139.96,51.2975]
[1728559790777,7.1424,140.01,139.97,7.144]
[1728559791096,7.1428,140.0,139.96,25.0058]
[1728559791299,7.1428,140.0,139.96,17.8611]
[1728559791475,7.1428,140.0,139.97,7.1443]
[1728559791988,7.1424,140.01,139.97,7.1443]
[1728559795192,7.1424,140.01,139.98,1.42852862]
[1728559796991,7.1424,140.01,139.97,7.1443]
[1728559797301,7.1424,140.01,139.98,1.42858284]
[1728559800474,7.1424,140.01,139.97,7.1443]
[1728559800802,7.1424,140.01,139.98,1.42854276]
[1728559800975,7.1419,140.02,139.98,8.57204276]
[1728559801482,23.115,140.05,140.0,17.8568]
[1728559801681,7.1413,140.03,140.0,17.8568]
[1728559802400,7.141,140.04,140.0,26.42788804]
[1728559802697,7.141,140.04,140.0,24.9995]
[1728559802874,23.115,140.05,140.0,24.9995]
[1728559803086,7.1413,140.03,140.0,24.9995]
[1728559803282,7.141,140.04,140.01,1.42829357]
[1728559803487,7.141,140.04,140.0,24.9995]
[1728559803697,7.141,140.04,140.01,1.42829013]
[1728559807383,7.1413,140.03,140.01,1.42829013]
[1728559807886,7.1413,140.03,140.0,24.9995]
[1728559808609,7.1413,140.03,140.0,17.8568]
[1728559810489,23.115,140.05,139.99,7.1431]
[1728559810490,7.1418,140.02,139.99,7.1431]
[1728559810991,7.1414,140.03,140.0,1.42830663]
[1728559811701,7.1418,140.02,140.0,1.42830663]
[1728559812001,7.1408,140.04,140.0,8.57110663]
[1728559812790,7.1408,140.04,140.0,7.1428]
[1728559813603,7.1408,140.04,140.01,1.42811994]
[1728559813908,7.1408,140.04,140.0,7.1428]
[1728559814410,7.1408,140.04,140.01,1.42811297]
[1728559814708,7.1408,140.04,140.0,7.1428]
[1728559815109,7.1408,140.04,140.01,1.42811308]
[1728559816597,23.6637,140.05,140.01,8.57011308]
[1728559816804,23.6637,140.05,140.0,7.1426]
[1728559816805,7.1409,140.04,140.0,7.1426]
[1728559821012,7.1409,140.04,140.01,1.42807989]
[1728559821915,16.2116,140.08,140.01,33.13655968]
[1728559822114,7.1401,140.06,140.02,7.1414]
[1728559823106,7.1401,140.06,140.03,1.42792331]
[1728559823292,7.1401,140.06,140.02,7.1414]
[1728559825598,7.1401,140.06,140.03,1.42791653]
[1728559827419,7.1401,140.06,140.02,7.1414]
[1728559829327,7.1401,140.06,140.03,1.42791714]
[1728559829513,7.1401,140.06,140.02,7.1414]
[1728559834899,16.2116,140.08,140.01,17.8555]
[1728559835099,7.1404,140.05,140.01,17.8555]
[1728559835312,7.1404,140.05,140.01,24.9978]
[1728559839317,7.1399,140.06,140.02,8.56974823]
[1728559841210,23.3504,140.08,140.04,7.1407]
[1728559841419,15.0601,140.11,140.05,1.42777633]
[1728559841621,15.0601,140.11,140.03,24.9941]
[1728559841622,7.1393,140.07,140.03,24.9941]
[1728559842324,7.1389,140.08,140.04,7.1407]
[1728559842521,7.1389,140.08,140.04,8.56847519]
[1728559844415,7.1389,140.08,140.04,7.1407]
[1728559847324,7.1384,140.09,140.05,8.56806193]
[1728559849130,7.1381,140.1,140.06,7.1397]
[1728559849309,7.1381,140.1,140.07,1.42753179]
[1728559853626,6.3553,140.13,140.08,1.42751566]
[1728559853928,6.3553,140.13,140.07,31.70097979]
[1728559854135,7.1368,140.12,140.08,7.1384]
[1728559854315,7.1366,140.13,140.09,7.1381]
[1728559855043,7.1366,140.13,140.1,1.42728588]
[1728559855418,7.134,140.18,140.13,7.136]
[1728559855634,16.3614,140.19,140.13,17.8398]
[1728559855827,16.3614,140.19,140.08,44.027864]
[1728559856020,34.1944,140.19,140.08,44.027864]
[1728559856333,16.3614,140.19,140.1,17.8439]
[1728559856504,7.1363,140.13,140.1,17.8439]
[1728559857006,7.1363,140.13,140.08,20.0]
[1728559857217,7.1363,140.13,140.09,7.138]
[1728559857612,7.1363,140.13,140.1,1.42729549]
[1728559858834,22.1786,140.14,140.1,7.1377]
[1728559859137,15.0428,140.14,140.1,7.1377]
[1728559859818,15.0428,140.14,140.11,7.1369]
[1728559860526,15.0428,140.14,140.09,24.9829]
[1728559860715,7.1364,140.13,140.09,24.9829]
[1728559860914,7.1371,140.12,140.08,20.0]
[1728559861116,7.1371,140.12,140.07,20.0]
[1728559861310,7.137,140.12,140.08,7.1382]
[1728559861510,7.1379,140.1,140.06,7.1397]
[1728559862229,6.0057,140.13,140.07,15.2805254]
[1728559862510,6.0057,140.13,140.07,1.42754561]
[1728559862712,6.0057,140.13,140.07,13.85297979]
[1728559863016,6.0057,140.13,140.08,1.4273755]
[1728559863429,6.0057,140.13,140.1,17.8441]
[1728559863430,13.1419,140.13,140.1,17.8441]
[1728559863623,13.1419,140.13,140.1,19.27147154]
[1728559864414,6.0057,140.13,140.1,26.40897154]
[1728559864615,22.1789,140.14,140.1,24.9816]
[1728559864917,7.1363,140.13,140.1,17.8441]
[1728559865121,7.1363,140.13,140.1,19.27148594]
[1728559865833,15.0428,140.14,140.1,17.8441]
[1728559866012,15.0428,140.14,140.11,7.1371]
[1728559866217,22.1785,140.14,140.1,24.9816]
[1728559868021,7.1363,140.13,140.09,7.1381]
[1728559869039,7.1363,140.13,140.1,1.42731342]
[1728559870142,7.1363,140.13,140.1,7.1377]
[1728559870313,7.1363,140.13,140.11,1.42730435]
[1728559871022,15.0428,140.14,140.11,1.42730435]
[1728559871224,22.1785,140.14,140.09,31.69837979]
[1728559871433,22.1785,140.14,140.1,7.1376]
[1728559871826,7.1362,140.13,140.1,7.1376]
[1728559872027,7.1362,140.13,140.09,24.9834]
[1728559873926,7.1364,140.13,140.09,24.9836]
[1728559874638,7.1369,140.12,140.09,17.8454]
[1728559876147,7.1364,140.13,140.09,24.9836]
[1728559876349,7.1364,140.13,140.1,1.42736046]
[1728559876641,22.1788,140.14,140.1,7.1375]
[1728559876815,7.1362,140.13,140.09,24.9834]
[1728559877623,7.1362,140.13,140.1,7.1377]
[1728559877941,22.1786,140.14,140.1,8.56498593]
[1728559878143,22.1786,140.14,140.11,7.1372]
[1728559878746,22.1786,140.14,140.1,7.1376]
[1728559883347,6.0253,140.16,140.09,17.8454]
[1728559883850,7.1363,140.13,140.1,1.42732588]
[1728559885346,7.1363,140.13,140.09,24.9833]
[1728559885853,7.1368,140.12,140.09,17.8454]
[1728559886022,6.0253,140.16,140.09,17.8454]
[1728559886230,6.0253,140.16,140.04,50.9918]
[1728559886231,15.6001,140.13,140.05,13.85297979]
[1728559886551,15.6001,140.13,140.0,7.73849786]
[1728559886552,7.1377,140.1,140.06,24.9879]
[1728559887543,7.1389,140.08,140.05,7.89651879]
[1728559887741,33.4409,140.13,140.05,7.89651879]
[1728559887742,7.1374,140.11,140.07,7.1392]
[1728559889658,7.1374,140.11,140.07,8.56682825]
[1728559889958,7.1374,140.11,140.07,7.1392]
[1728559891353,22.7366,140.13,140.08,8.56602186]
[1728559892356,15.6001,140.13,140.09,7.138]
[1728559892654,6.0253,140.16,140.1,1.42737743]
[1728559892860,6.0253,140.16,140.1,15.28035722]
[1728559893085,13.16,140.16,140.12,7.1365]
[1728559893231,7.1352,140.15,140.11,24.9796]
[1728559893849,6.0253,140.16,140.11,17.8425]
[1728559894061,13.1601,140.16,140.12,8.56377718]
[1728559894350,7.1348,140.16,140.12,8.56377718]
[1728559895142,23.0029,140.17,140.13,7.1361]
[1728559895327,23.0029,140.17,140.12,7.1365]
[1728559897952,23.0029,140.17,140.11,17.8425]
[1728559898138,23.0029,140.17,140.13,7.136]
[1728559899553,23.0029,140.17,140.14,1.42699599]
[1728559900230,15.8683,140.17,140.14,7.1356]
[1728559900867,23.0025,140.17,140.13,24.9761]
[1728559901158,13.5109,140.19,140.15,24.9728]
[1728559901341,7.1332,140.19,140.15,24.9728]
[1728559903560,15.9689,140.2,140.15,24.9728]
[1728559903561,15.9689,140.2,140.16,15.27973097]
[1728559904036,15.9689,140.2,140.18,17.8335]
[1728559904234,7.3545176,140.23,140.18,17.8335]
[1728559904432,7.1318,140.22,140.19,1.42649442]
[1728559904734,14.4857176,140.23,140.19,1.42649442]
[1728559904931,14.4857176,140.23,140.18,26.39346751]
[1728559905144,7.1316,140.22,140.18,17.8335]
[1728559905348,7.1316,140.22,140.18,24.967]
[1728559905959,7.1316,140.22,140.18,26.39349729]
[1728559906166,7.3545176,140.23,140.18,1.42649729]
[1728559906336,7.1322,140.21,140.17,7.134]
[1728559906843,7.1322,140.21,140.18,1.42653563]
[1728559907267,7.1317,140.22,140.18,1.42653563]
[1728559908037,7.1317,140.22,140.17,7.134]
[1728559908239,7.3545176,140.23,140.16,7.1346]
[1728559908844,7.3545176,140.23,140.13,7.136]
[1728559908845,24.027864,140.21,140.13,7.136]
[1728559909047,7.1345,140.17,140.13,7.136]
[1728559915243,7.1345,140.17,140.12,17.8408]
[1728559915451,7.1345,140.17,140.14,7.1356]
[1728559920173,24.027864,140.21,140.14,7.1356]
[1728559920349,7.1338,140.18,140.14,7.1356]
[1728559920749,7.1338,140.18,140.15,1.42689338]
[1728559921667,7.1333,140.19,140.15,1.42689338]
[1728559922956,15.7346,140.22,140.21,7.1321]
[1728559923159,7.3545176,140.23,140.21,7.1321]
[1728559923160,0.8221176,140.23,140.21,7.1321]
[1728559923356,0.8221176,140.23,140.22,7.1316]
[1728559923778,0.8221176,140.23,140.22,20.98457979]
[1728559923953,0.8221176,140.23,140.22,7.1316]
[1728559924154,0.8221176,140.23,140.22,20.98457979]
[1728559924353,0.8221176,140.23,140.22,7.25709]
[1728559924559,0.8221176,140.23,140.21,7.132]
[1728559924774,0.8221176,140.23,140.17,17.8349]
[1728559924974,0.8221176,140.23,140.19,7.133]
[1728559925177,7.132,140.22,140.17,31.68787979]
[1728559925476,0.8221176,140.23,140.17,38.82157979]
[1728559925477,7.9537176,140.23,140.17,38.82157979]
[1728559925978,0.8221176,140.23,140.17,24.9686]
[1728559926485,7.1321,140.21,140.17,24.9686]
[1728559927577,7.1321,140.21,140.17,17.8349]
[1728559928087,0.8221176,140.23,140.16,1.42655749]
[1728559928277,0.8221176,140.23,140.16,28.56115749]
[1728559928574,7.1322,140.21,140.17,1.42665793]
[1728559928774,7.1322,140.21,140.17,8.56055793]
[1728559930679,0.8221176,140.23,140.18,7.1335]
[1728559930887,0.8221176,140.23,140.17,13.85297979]
[1728559931056,0.8221176,140.23,140.2,24.9638]
[1728559931979,0.8221176,140.23,140.21,7.132]
[1728559933476,0.8221176,140.23,140.22,7.1316]
[1728559935576,0.8221176,140.23,140.22,42.41055441]
[1728559935771,0.8221176,140.23,140.22,40.98457979]
[1728559936153,0.8221176,140.23,140.22,27.25709]
[1728559936386,0.8221176,140.23,140.22,27.1316]
[1728559937559,0.8221176,140.23,140.22,28.55754842]
[1728559937869,0.8221176,140.23,140.22,28.55754732]
[1728559938070,0.8221176,140.23,140.22,27.1316]
[1728559938276,0.8221176,140.23,140.22,28.5575515]
[1728559938582,0.8221176,140.23,140.22,42.41053129]
[1728559938879,0.8221176,140.23,140.22,42.53602129]
[1728559939067,0.8221176,140.23,140.22,65.01244379]
[1728559939981,0.8221176,140.23,140.22,66.43810377]
[1728559940188,0.8221176,140.23,140.22,65.01244379]
[1728559942162,0.8221176,140.23,140.22,66.43813224]
[1728559942365,0.8221176,140.23,140.22,65.01244379]
[1728559944563,0.8221176,140.23,140.22,51.159464]
[1728559944785,0.8221176,140.23,140.2,17.8312]
[1728559944977,0.8221176,140.23,140.22,7.1316]
[1728559946568,0.8221176,140.23,140.22,41.11006979]
[1728559947392,0.8221176,140.23,140.22,27.1316]
[1728559948093,0.8221176,140.23,140.22,41.11006979]
[1728559948778,0.8221176,140.23,140.22,20.0]
[1728559949797,0.8221176,140.23,140.2,17.8312]
[1728559950091,7.1322,140.21,140.17,24.9686]
[1728559950264,0.8221176,140.23,140.17,17.8346]
[1728559950467,7.1332,140.19,140.15,7.1352]
[1728559950984,7.1322,140.21,140.17,7.1341]
[1728559951368,7.1328,140.2,140.16,24.9709]
[1728559953200,7.1332,140.19,140.16,17.8363]
[1728559953377,7.1327,140.2,140.16,17.8363]
[1728559953710,7.1327,140.2,140.1,24.9814]
[1728559953711,43.776884,140.18,140.1,24.9814]
[1728559953990,43.776884,140.18,140.09,7.1381]
[1728559953991,0.25098,140.17,140.09,7.1381]
[1728559954195,7.1363,140.13,140.07,17.8475]
[1728559954378,7.1363,140.13,140.08,7.1383]
[1728559954698,7.1358,140.14,140.09,7.1381]
[1728559956194,0.25098,140.17,140.1,7.1377]
[1728559956366,7.1353,140.15,140.11,8.56425658]
[1728559957292,7.1353,140.15,140.11,7.137]
[1728559959673,7.1353,140.15,140.12,1.42720909]
[1728559960196,7.1348,140.16,140.12,1.42720909]
[1728559960790,7.1348,140.16,140.11,7.137]
[1728559961198,7.136,140.14,140.09,24.9831]
[1728559961407,61.611884,140.18,140.08,7.1386]
[1728559961408,7.1367,140.12,140.08,7.1386]
[1728559962093,7.1363,140.13,140.08,7.1386]
[1728559962277,7.1368,140.12,140.07,20.0]
[1728559962482,44.027864,140.15,140.07,27.1392]
[1728559963304,44.027864,140.15,140.07,27.01447]
[1728559963593,44.027864,140.15,140.03,17.8524]
[1728559963594,7.1391,140.08,140.03,17.8524]
[1728559963775,20.12549,140.11,140.03,17.8524]
[1728559963974,21.4574,140.07,140.0,17.8562]
[1728559964194,23.902374,140.06,140.0,17.8562]
[1728559964499,7.1412,140.04,140.0,17.8562]
[1728559965201,20.0,140.05,139.97,17.8603]
[1728559965374,20.0,140.05,139.96,7.1448]
[1728559965375,0.12549,140.05,139.96,7.1448]
[1728559965570,0.12549,140.05,139.92,72.48848608]
[1728559965571,22.3714,140.0,139.95,7.1453]
[1728559965791,15.2286,140.0,139.95,25.008]
[1728559965992,7.1433,139.99,139.95,17.8627]
[1728559967300,28.6003,140.0,139.95,25.0078]
[1728559967474,28.6003,140.0,139.92,17.8669]
[1728559967475,7.1436,139.99,139.92,17.8669]
[1728559967876,7.1445,139.97,139.92,25.0138]
[1728559968879,43.902374,139.99,139.93,1.42920762]
[1728559969088,51.045774,139.99,139.94,7.1457]
[1728559969495,31.045774,139.99,139.94,7.1457]
[1728559969893,28.6003,140.0,139.95,7.1449]
[1728559970089,21.4574,140.0,139.96,7.1447]
[1728559970298,28.6003,140.0,139.96,7.1447]
[1728559970498,21.4574,140.0,139.96,7.1447]
[1728559971214,21.4574,140.0,139.97,7.1442]
[1728559971900,21.4574,140.0,139.96,17.8615]
[1728559972086,28.6006,140.0,139.96,17.8615]
[1728559972909,28.6006,140.0,139.96,25.0063]
[1728559972910,21.4574,140.0,139.96,25.0063]
[1728559974809,21.4574,140.0,139.96,26.43509156]
[1728559975013,21.4574,140.0,139.96,25.0063]
[1728559975309,28.6003,140.0,139.96,25.0063]
[1728559975512,28.6003,140.0,139.96,17.8615]
[1728559976188,28.6003,140.0,139.96,25.0062]
[1728559977100,15.2286,140.0,139.97,7.1441]
[1728559977292,15.2286,140.0,139.98,7.1438]
[1728559977492,15.2286,140.0,139.97,7.1443]
[1728559978407,29.7394,140.03,139.98,19.2877456]
[1728559978792,22.598,140.03,139.99,7.1429]
[1728559979920,7.1428,140.01,139.96,27.1445]
[1728559980216,7.1419,140.02,139.97,7.144]
[1728559980399,7.1427,140.01,139.96,27.1447]
[1728559980718,23.902374,140.02,139.95,1221.2322]
[1728559980921,7.1433,139.99,139.95,1221.2322]
[1728559982403,7.1433,139.99,139.95,1214.087]
[1728559982608,7.1433,139.99,139.95,1221.2323]
[1728559983293,7.143,140.0,139.96,7.1448]
[1728559983494,7.1427,140.01,139.97,7.1443]
[1728559983700,7.1427,140.01,139.95,1214.087]
[1728559983993,7.1432,140.0,139.95,1221.2322]
[1728559984188,61.882864,140.02,139.95,1196.2237]
[1728559984421,7.1444,139.97,139.95,1196.2237]
[1728559985918,7.1448,139.96,139.95,1196.2237]
[1728559986215,23.7205,139.96,139.95,1196.2237]
[1728559987497,73.822174,139.96,139.95,1196.2237]
[1728559987699,73.947664,139.96,139.95,1196.2237]
[1728559990525,73.947664,139.96,139.95,1179.5571]
[1728559991717,73.947664,139.96,139.95,1059.70256326]
[1728559991901,73.947664,139.96,139.95,1043.03596326]
[1728559993201,33.3441,139.96,139.95,1043.03596326]
[1728559993915,26.1993,139.96,139.95,1043.03596326]
[1728559994295,20.0,139.96,139.95,1043.03596326]
[1728559995005,20.12549,139.96,139.95,1043.03596326]
[1728559995234,27.27029,139.96,139.95,1043.03596326]
[1728559995527,27.1448,139.96,139.95,1043.03596326]
[1728559995713,20.0,139.96,139.95,1043.03596326]
[1728559995917,27.1448,139.96,139.95,1043.03596326]
[1728559996114,20.0,139.96,139.95,1043.03596326]
[1728559997714,27.27029,139.96,139.95,1043.03596326]
[1728559998714,27.39578,139.96,139.95,1043.03596326]
[1728559999420,27.27029,139.96,139.95,1043.03596326]
[1728559999618,27.27029,139.96,139.95,543.0]
[1728560004309,51.172664,139.96,139.95,543.0]
[1728560005732,27.39578,139.96,139.95,543.0]
[1728560007538,27.1448,139.96,139.95,543.0]
[1728560009049,7.1448,139.96,139.95,543.0]
[1728560009214,7.1435,139.99,139.95,550.1453]
[1728560009410,39.8475,140.03,139.95,543.0]
[1728560009411,7.1439,139.98,139.95,543.0]
[1728560011122,39.8475,140.03,139.95,543.0]
[1728560011330,7.1436,139.99,139.95,550.1453]
[1728560015750,39.8475,140.03,139.95,543.0]
[1728560015925,7.1435,139.99,139.95,550.1452]
[1728560017447,7.1448,139.96,139.95,543.0]
[1728560018621,27.1448,139.96,139.95,543.0]
[1728560019126,27.27029,139.96,139.95,543.0]
[1728560019819,27.39578,139.96,139.95,543.0]
[1728560020039,51.172664,139.96,139.95,543.0]
[1728560021743,51.172664,139.96,139.95,456.47866326]
[1728560022329,51.172664,139.96,139.95,447.14926326]
[1728560027730,27.39578,139.96,139.95,447.14926326]
[1728560027931,27.1448,139.96,139.95,447.14926326]
[1728560029449,7.1439,139.98,139.95,447.14926326]
[1728560030460,6.2275,140.01,139.95,447.14926326]
[1728560030753,7.1443,139.97,139.95,447.14926326]
[1728560034257,7.1448,139.96,139.95,447.14926326]
[1728560034562,27.27029,139.96,139.95,447.14926326]
[1728560035140,27.39578,139.96,139.95,447.14926326]
[1728560035454,51.172664,139.96,139.95,447.14926326]
[1728560035958,27.39578,139.96,139.95,447.14926326]
[1728560037159,51.172664,139.96,139.95,447.14926326]
[1728560040240,27.39578,139.96,139.95,447.14926326]
[1728560040555,51.172664,139.96,139.95,447.14926326]
[1728560054888,7.1448,139.96,139.95,447.14926326]
[1728560056357,27.1448,139.96,139.95,447.14926326]
[1728560059879,20.0,139.96,139.95,447.14926326]
[1728560060788,7.1444,139.97,139.95,447.14926326]
[1728560062582,7.1448,139.96,139.95,447.14926326]
[1728560064358,0.25098,140.0,139.95,447.14926326]
[1728560064565,7.1445,139.97,139.95,447.14926326]
[1728560064981,7.1448,139.96,139.95,447.14926326]
[1728560066461,20.12549,140.0,139.95,447.14926326]
[1728560066663,7.1437,139.99,139.95,454.29456326]
[1728560067161,7.1437,139.99,139.96,1.42883851]
[1728560067867,7.1437,139.99,139.95,454.29456326]
[1728560069462,7.1437,139.99,139.95,468.05752369]
[1728560070475,0.25098,140.01,139.95,447.14926326]
[1728560070797,7.1448,139.96,139.95,447.14926326]
[1728560071172,7.1445,139.97,139.95,447.14926326]
[1728560071760,17.8574,140.0,139.95,447.14926326]
[1728560071979,7.1448,139.96,139.95,447.14926326]
[1728560074499,27.1448,139.96,139.95,447.14926326]
[1728560075502,27.39578,139.96,139.95,447.14926326]
[1728560079299,51.172664,139.96,139.95,447.14926326]
[1728560094090,51.172664,139.96,139.95,437.90546326]
[1728560094406,51.172664,139.96,139.95,432.43396326]
[1728560098300,51.172664,139.96,139.95,427.30936326]
[1728560098497,51.172664,139.96,139.95,421.43486326]
[1728560098700,51.172664,139.96,139.95,415.56036326]
[1728560098901,51.172664,139.96,139.95,409.68586326]
[1728560099285,72.672664,139.96,139.95,332.92798856]
[1728560099604,72.672664,139.96,139.95,324.14788856]
[1728560100698,72.672664,139.96,139.95,302.47318856]
[1728560100894,80.11863142,139.96,139.95,254.95490666]
[1728560101215,86.26363142,139.96,139.95,203.54990666]
[1728560101505,86.26363142,139.96,139.95,167.35232674]
[1728560101709,86.26363142,139.96,139.95,143.58232674]
[1728560101883,86.26363142,139.96,139.95,80.49385204]
[1728560102082,86.26363142,139.96,139.95,20.33105283]
[1728560102310,86.26363142,139.96,139.95,15.90825283]
[1728560102492,20.0,139.89,139.82,15.9016]
[1728560103089,0.12549,139.88,139.82,15.9016]
[1728560103498,0.25098,139.88,139.82,15.9016]
[1728560104295,0.25098,139.87,139.82,15.9016]
[1728560105997,27.1515,139.83,139.82,15.9016]
[1728560110023,7.1511,139.84,139.82,15.9016]
[1728560110811,20.0,139.84,139.82,17.33195134]
[1728560110997,54.8491408,139.92,139.83,13.76296043]
[1728560111192,7.1492,139.88,139.84,15.19296228]
[1728560112419,7.1497,139.87,139.83,13.76296043]
[1728560112598,7.15,139.86,139.83,13.76296043]
[1728560113420,7.1496,139.87,139.83,13.76296043]
[1728560113619,7.1496,139.87,139.83,20.91436043]
[1728560114529,20.25098,139.91,139.84,37.53984443]
[1728560114735,7.1491,139.88,139.85,23.9861904]
[1728560115524,7.1491,139.88,139.85,22.5563]
[1728560116203,7.15,139.86,139.85,22.5563]
[1728560117227,7.1496,139.87,139.85,22.5563]
[1728560117526,7.1491,139.88,139.85,22.5563]
[1728560120534,38.11998,139.91,139.85,22.5563]
[1728560120826,7.15,139.86,139.85,22.5563]
[1728560122115,7.1496,139.87,139.85,22.5563]
[1728560122634,7.1491,139.88,139.85,22.5563]
[1728560122811,7.1491,139.88,139.85,23.98625752]
[1728560125130,7.1491,139.88,139.85,22.5563]
[1728560126024,7.1495,139.87,139.85,15.9638]
[1728560126323,7.15,139.86,139.85,15.9638]
[1728560126702,27.15,139.86,139.85,15.9638]
[1728560126903,7.1515,139.83,139.82,16.6412]
[1728560128419,27.1515,139.83,139.82,16.6412]
[1728560130910,20.0,139.83,139.82,16.6412]
[1728560133437,27.1515,139.83,139.82,16.6412]
[1728560134037,7.1513,139.84,139.82,16.6412]
[1728560134412,20.0,139.83,139.82,16.6412]
[1728560134739,20.25098,139.87,139.82,16.6412]
[1728560134740,7.1508,139.85,139.82,16.6412]
[1728560135111,20.12549,139.87,139.82,16.6412]
[1728560135416,7.151,139.84,139.82,16.6412]
[1728560140641,20.12549,139.87,139.82,16.6412]
[1728560141237,7.1511,139.84,139.82,16.6412]
[1728560142847,7.1494,139.87,139.83,25.03]
[1728560143139,20.0,139.9,139.83,26.460184]
[1728560143517,0.25098,139.89,139.83,26.460184]
[1728560143917,7.15,139.86,139.83,19.308784]
[1728560145148,7.1495,139.87,139.83,40.22314443]
[1728560145344,7.1495,139.87,139.84,13.76296043]
[1728560145649,7.1495,139.87,139.85,1.42992797]
[1728560146152,7.148,139.9,139.87,15.3348]
[1728560146356,7.148,139.9,139.87,30.52745457]
[1728560146729,7.1475,139.91,139.88,13.76296043]
[1728560146934,7.147,139.92,139.88,20.91186043]
[1728560147125,7.147,139.92,139.89,1.42947257]
[1728560147532,7.147,139.92,139.88,20.91186043]
[1728560148358,7.1457,139.95,139.9,13.76296043]
[1728560148646,7.1459,139.94,139.9,20.91076043]
[1728560148823,7.1464,139.93,139.9,13.76296043]
[1728560149021,17.8601,139.98,139.91,1.42927362]
[1728560149632,7.146,139.94,139.9,13.76296043]
[1728560150140,7.146,139.94,139.91,13.76296043]
[1728560150642,7.146,139.94,139.91,15.19215751]
[1728560150835,7.1454,139.95,139.91,22.33955751]
[1728560151346,14.04123055,140.0,139.93,13.76296043]
[1728560151530,7.1447,139.97,139.94,15.19189356]
[1728560152052,7.144,139.98,139.94,15.19189356]
[1728560152549,7.143,140.0,139.96,13.76296043]
[1728560152746,7.1424,140.01,139.98,13.76296043]
[1728560152932,7.1419,140.02,139.98,29.42826043]
[1728560153254,7.1419,140.02,139.99,1.42854341]
[1728560153550,7.1425,140.01,139.98,29.42826043]
[1728560154163,7.1419,140.02,139.99,1.42846031]
[1728560154446,7.1408,140.04,140.01,13.76296043]
[1728560154657,7.1404,140.05,140.02,1.42816174]
[1728560155733,7.1396,140.07,140.02,40.18692217]
[1728560155930,25.29176134,140.1,140.02,40.18692217]
[1728560155931,17.8444,140.1,140.02,31.61706043]
[1728560156132,7.1403,140.05,140.02,15.19105301]
[1728560156452,7.1403,140.05,140.02,1.42809258]
[1728560157543,7.1403,140.05,140.03,1.42806971]
[1728560157748,7.1403,140.05,140.01,1.42807043]